[Event "3rd Sharjah Challengers 2023"]
[Site "Sharjah"]
[Date "2023.05.23"]
[Round "7.8"]
[White "Eiti, Bashir"]
[Black "Burmakin, Vladimir"]
[Result "1-0"]
[ECO "A17"]
[WhiteElo "2346"]
[BlackElo "2496"]
[Annotator "TA"]
[PlyCount "154"]
[EventDate "2023.05.16"]
[EventType "swiss"]
[EventCountry "UAE"]
[SourceTitle "playchess.com"]
[Source "ChessBase"]
[SourceQuality "1"]
[TimeControl "5400+30"]

{[%evp 17,154,-31,-24,-41,-18,-37,-16,-42,-47,-59,-51,-54,-49,-81,-64,-79,-84,-76,-81,-133,-132,-137,-137,-128,-99,-90,-100,-164,-154,-160,-133,-166,-137,-197,-211,-282,-270,-289,-214,-540,-525,-538,-506,-534,-523,-768,-763,-843,-970,-931,-910,-860,-317,-359,-349,-493,-477,-688,-249,-250,-202,-421,-437,-537,-533,-532,-451,-542,-506,-845,-614,-750,-744,-882,-660,-613,-556,-528,-522,-612,-600,-708,-637,-652,-640,-820,-797,-943,-676,-826,-813,-922,-793,-1049,-1036,-1052,-1045,-1057,-1049,-1033,-1027,-1011,-955,-943,-922,-1539,-1607,-1581,-1599,-1443,-1562,-1517,-1422,-1362,-1570,-1483,-1530,-1432,-1442,-1976,-2039,-2320,-2215,-2131,-2208,-3741,-2704,-29987,-29988,-29988,-29989,-29989,-29990,-29991,-29992,-29995,-29996,-29998,-29993]} 1. c3 {[%emt 0:00:17]} d5 {[%emt 0:00:35]} 2. g3 {[%emt 0:03:38]} e5 {[%emt 0:04:09]} 3. Bg2 {[%emt 0:01:03]} Nf6 {[%emt 0:03:00]} 4. d4 {[%emt 0:01:31]} exd4 {[%emt 0:00:06]} 5. cxd4 {[%emt 0:00:07]} h6 {[%emt 0:00:12]} 6. Nc3 {[%emt 0:00:33]} Be7 {[%emt 0:00:22]} 7. Nf3 {[%emt 0:01:01]} c6 {[%emt 0:00:09]} 8. O-O {[%emt 0:01:08]} Bf5 {[%emt 0:00:22]} 9. a3 {[%emt 0:02:34]} O-O {[%emt 0:02:44]} 10. b4 {[%emt 0:02:08] A17: English Opening: 1...Nf6 with ...Bb4.} Ne4 {[%emt 0:09:46]} 11. Bb2 {[%emt 0:10:27]} a5 {[%emt 0:10:36]} 12. b5 {[%emt 0:10:14] [#] The position is equal.} Qb6 $146 {[%emt 0:00:53]} ({Predecessor:} 12... Nd7 13. bxc6 bxc6 14. Nxe4 Bxe4 15. Ne5 Nxe5 16. dxe5 Bxg2 17. Kxg2 c5 18. e3 a4 19. Qg4 Qb6 20. Rab1 Qe6 21. Qf3 f6 22. exf6 Bxf6 23. Bxf6 Rxf6 24. Rb5 Rxf3 {0-1 Cadena,R (1830)-Motta Leon,G (2045) Bogota McGregor op 4th 2013 (9)}) 13. Ne5 {[%emt 0:07:12][%cal Ob5c6]} Nxc3 {[%emt 0:00:52]} (13... cxb5 $2 14. Nxd5 Qd8 15. Qb3 $18) 14. Bxc3 {[%emt 0:00:06]} Qxb5 {[%emt 0:00:12]} 15. g4 {[%emt 0:06:52]} Bh7 {[%emt 0:01:14]} 16. f4 {[%emt 0:02:11]} f6 {[%emt 0:06:36]} 17. a4 {[%emt 0:01:37]} Qb6 {[%emt 0:11:08]} 18. Nf3 {[%emt 0:00:19]} ({White should play} 18. Nd3) 18... Na6 $17 {[%emt 0:04:54]} 19. f5 {[%emt 0:01:18]} Rae8 {[%emt 0:00:30]} 20. Rb1 {[%emt 0:12:32]} Bb4 {[%emt 0:00:12]} 21. Ne1 {[%emt 0:12:02]} Qc7 {[%emt 0:13:05]} 22. Bb2 {[%emt 0:02:58]} (22. Bxb4 $17 Nxb4 23. Nd3) 22... Bd6 {[%emt 0:03:46]} 23. h3 {[%emt 0:00:02]} Qe7 {[%emt 0:01:18]} 24. Bf3 {[%emt 0:02:33]} Nb4 {[%emt 0:06:23]} 25. Ng2 {[%emt 0:01:37]} (25. Bc1 $17) 25... g5 {[%emt 0:00:41]} 26. fxg6 {[%emt 0:03:45]} Bxg6 {[%emt 0:00:01]} 27. Nh4 {[%emt 0:01:30]} Bh7 $40 {[%emt 0:06:12][%mdl 128] Black goes for the king.} (27... Bxb1 $2 28. Qxb1 Qh7 29. Nf5 $19) 28. Nf5 $2 {[%emt 0:00:32]} (28. Kh1 {is a better chance.}) 28... Bxf5 $19 {[%emt 0:00:10]} 29. gxf5 {[%emt 0:00:02]} Kh7 {[%emt 0:00:09] [#] Hoping for ...Rg8+.} 30. Kh1 {[%emt 0:02:13]} Rg8 {[%emt 0:00:06] Strongly threatening ...Rg3.} 31. Rg1 {[%emt 0:01:52]} Qe3 {[%emt 0:00:31]} 32. Rg6 {[%emt 0:02:01]} Qf4 {[%emt 0:01:49][%csl Gd6][%cal Rf4h2]} 33. Qg1 {[%emt 0:03:16] Repels Qh2+} Qxf5 {[%emt 0:00:43]} 34. Rg4 {[%emt 0:00:08]} Rxg4 $2 {[%emt 0:00:55]} (34... h5 35. Rh4 Rxg1+ 36. Rxg1 Re3 37. Rxh5+ Qxh5 {[%mdl 64] Remove Defender} 38. Bxh5 Rxh3+ 39. Kg2 Rxh5) 35. hxg4 {[%emt 0:01:03]} Qg5 {[%emt 0:00:39]} 36. Qf2 {[%emt 0:01:02] Wards off Qh4+} (36. Bc1 $142 Bf4 37. Bxf4 Qxf4 38. Rb3) 36... Bf4 {[%emt 0:01:06] [#] And now ...f5 would win.} 37. Bc3 {[%emt 0:00:27]} (37. Rf1 $142 Nc2 38. Bg2) 37... Bd2 $2 {[%emt 0:00:46]} (37... f5 38. Rg1 Be3) 38. Bxd2 {[%emt 0:00:19]} Qxd2 {[%emt 0:00:07]} 39. Kg2 $2 {[%emt 0:01:29]} (39. g5 {was necessary.} Qf4 40. gxf6) 39... Re7 {[%emt 0:00:37]} 40. Rh1 {[%emt 0:01:25]} Nc2 {[%emt 0:00:17]} 41. Qh4 {[%emt 0:01:06]} Qg5 {[%emt 0:00:40]} (41... Qxd4 $2 {gets mated.} 42. Qxh6+ Kg8 43. Qg6+ Rg7 44. Qe8#) (41... Nxd4 42. Qxf6 Rxe2+ 43. Kg3 $11 (43. Bxe2 Qxe2+ 44. Kg3 Qe3+ 45. Kh2 Ne6 $11)) 42. Qg3 {[%emt 0:00:40]} Nxd4 {[%emt 0:00:41]} 43. Rh5 {[%emt 0:00:02]} (43. Qd6 $142 Nf5 44. Qc5) 43... Qe3 {[%emt 0:00:20]} 44. g5 {[%emt 0:00:46]} fxg5 {[%emt 0:01:05]} 45. Qh3 {[%emt 0:02:11]} g4 {[%emt 0:01:10]} (45... Nxe2 46. Rxh6+ Kg7 47. Rh7+ Kg6 48. Qh6+ Kf5 49. Qf8+ Ke5 50. Rxe7+ Kd4 51. Rxe3) 46. Bxg4 {[%emt 0:00:35]} Qxh3+ {[%emt 0:11:41]} (46... Nxe2 $2 {too greedy.} 47. Qxe3 Rxe3 48. Kf2 $19) 47. Rxh3 {[%emt 0:00:15]} Nxe2 {[%emt 0:00:00][%mdl 4096] Endgame KRB-KRN} 48. Rb3 {[%emt 0:00:36]} Nd4 {[%emt 0:00:00]} 49. Rb6 {[%emt 0:00:07]} Rc7 {[%emt 0:00:00] Against Bc8} 50. Kf2 {[%emt 0:00:25]} Kg6 {[%emt 0:00:00]} 51. Ke3 {[%emt 0:00:09]} Kg5 {[%emt 0:00:00]} 52. Bh3 {[%emt 0:00:24]} Nf5+ {[%emt 0:00:00]} 53. Kd3 {[%emt 0:01:14]} Re7 {[%emt 0:00:00]} 54. Kc2 {[%emt 0:00:27]} h5 {[%emt 0:00:00][%cal Bh6h5,Bh5h4][%mdl 32] White must now prevent ...Ne3+.} 55. Kd2 {[%emt 0:00:51]} h4 {[%emt 0:00:00]} 56. Rb1 {[%emt 0:00:13]} Ng3 {[%emt 0:00:00] Threatens to win with ...Ne4+.} 57. Bc8 {[%emt 0:00:20]} Rc7 {[%emt 0:00:00]} 58. Bh3 {[%emt 0:00:34]} Kf4 {[%emt 0:00:00]} 59. Kd3 {[%emt 0:00:20]} Ke5 {[%emt 0:00:00]} 60. Re1+ {[%emt 0:00:13]} Ne4 {[%emt 0:00:00]} 61. Rf1 {[%emt 0:00:13]} Rg7 {[%emt 0:00:00]} 62. Rf5+ {[%emt 0:00:58]} Kd6 {[%emt 0:00:00]} 63. Kc2 {[%emt 0:00:09]} Rg3 {[%emt 0:00:00]} 64. Bf1 {[%emt 0:00:06]} Ra3 {[%emt 0:01:02] aiming for ...h3.} 65. Rh5 {[%emt 0:00:32]} Ng3 {[%emt 0:00:27]} 66. Rh6+ {[%emt 0:00:02]} Kc5 {[%emt 0:00:08]} 67. Bh3 {[%emt 0:00:22]} Rxa4 {[%emt 0:00:12]} 68. Bc8 {[%emt 0:00:24]} Rc4+ {[%emt 0:00:18]} 69. Kd3 {[%emt 0:00:29]} b5 {[%emt 0:00:55][%cal Bb7b5,Bb5c4][%mdl 32] ...a4 would be deadly.} 70. Bd7 {[%emt 0:00:24]} Kb6 {[%emt 0:00:07]} 71. Be6 {[%emt 0:00:13]} a4 {[%emt 0:00:44] ( -> ...a3)} 72. Rg6 {[%emt 0:01:54]} a3 {[%emt 0:01:14] Black mates.} 73. Bxd5 {[%emt 0:00:57]} a2 {[%emt 0:00:09]} 74. Bxc4 {[%emt 0:00:51]} bxc4+ {[%emt 0:00:09]} ({Weaker is} 74... a1=B 75. Bd5 $16) 75. Kd2 {[%emt 0:00:05]} a1=Q {[%emt 0:00:15]} 76. Kc2 {[%emt 0:00:21]} Qa2+ {[%emt 0:00:12]} 77. Kc3 {[%emt 0:01:06]} Qb3+ {[%emt 0:00:09][%mdl 32768] Weighted Error Value: White=0.78/Black=0.51. Loss on time!?} 1-0

[Event "3rd Sharjah Challengers 2023"]
[Site "Sharjah"]
[Date "2023.05.23"]
[Round "7.9"]
[White "Vorobiov, Evgeny E."]
[Black "Tissir, Mohamed"]
[Result "0-1"]
[ECO "A43"]
[WhiteElo "2483"]
[BlackElo "2354"]
[Annotator "TA"]
[PlyCount "91"]
[EventDate "2023.05.16"]
[EventType "swiss"]
[EventCountry "UAE"]
[SourceTitle "playchess.com"]
[Source "ChessBase"]
[SourceQuality "1"]
[TimeControl "5400+30"]

{[%evp 9,91,65,70,33,81,37,37,53,66,66,41,41,111,96,110,81,91,30,63,33,44,34,92,10,63,43,51,34,76,69,74,61,76,51,60,72,79,9,84,24,38,33,218,0,62,0,0,12,0,-81,-76,-84,0,0,20,-41,0,0,10,16,34,32,266,259,220,0,0,-78,0,0,0,0,0,-56,-58,-56,-65,-58,-58,-57,-56,-56,-51,-57]} 1. d4 {[%emt 0:00:02]} e6 {[%emt 0:16:30]} 2. c4 {[%emt 0:01:43]} c5 {[%emt 0:00:23]} 3. d5 {[%emt 0:01:46]} exd5 {[%emt 0:00:05]} 4. cxd5 {[%emt 0:00:04]} d6 {[%emt 0:00:05]} 5. Nc3 {[%emt 0:00:11]} Ne7 {[%emt 0:00:10]} 6. Nf3 {[%emt 0:16:10] A43: Schmid Benoni.} a6 {[%emt 0:02:55]} (6... Nd7 $14 {should be considered.}) 7. e4 {[%emt 0:08:15]} Ng6 {[%emt 0:00:22]} 8. h4 {[%emt 0:04:00][%cal Bh2h4,Bh4h5][%mdl 32] White is slightly better.} Nd7 {[%emt 0:00:07] [#]} 9. h5 $146 {[%emt 0:04:46]} ({Predecessor:} 9. a4 h6 10. Be2 Be7 11. h5 Nge5 12. Nd2 O-O 13. f4 Bh4+ 14. Kf1 Qf6 15. Nc4 Nxc4 16. Bxc4 {½-½ Garcia Ortega Mendez,J (2102)-Portalo Calero,F (1967) Extremadura-ch 2007 (2)}) 9... Nge5 {[%emt 0:00:06]} 10. Nxe5 {[%emt 0:00:53]} dxe5 {[%emt 0:02:41] Black is weak on the light squares} (10... Nxe5 $14 11. f4 Nd7) 11. a4 {[%emt 0:10:31]} h6 {[%emt 0:19:24]} 12. Be2 {[%emt 0:04:53]} Bd6 {[%emt 0:09:18]} 13. Bg4 {[%emt 0:02:53]} (13. Be3 $16) 13... Rb8 {[%emt 0:17:10]} 14. Ne2 {[%emt 0:06:35]} c4 {[%emt 0:12:57]} 15. Ng3 {[%emt 0:00:38]} Nc5 {[%emt 0:00:04]} (15... Bb4+ $14 16. Kf1 O-O) 16. O-O {[%emt 0:03:18]} (16. Bxc8 $1 $16 {Hoping for Bg4.} Nd3+ 17. Kf1 Rxc8 18. Qg4) 16... O-O {[%emt 0:14:12]} (16... Nb3 $11) 17. Bxc8 $14 {[%emt 0:05:18]} Rxc8 {[%emt 0:00:02]} 18. Qg4 {[%emt 0:00:20]} Kh8 {[%emt 0:00:54]} 19. Be3 {[%emt 0:05:41]} (19. Nf5 Qf6 $14) 19... Nd3 {[%emt 0:00:25]} 20. Rab1 {[%emt 0:01:22]} (20. Nf5 $5 {[%cal Rg4g7]} Qf6 21. Qe2 $14) 20... Qf6 {[%emt 0:00:25]} 21. Nf5 {[%emt 0:00:53]} b5 {[%emt 0:01:32]} 22. axb5 {[%emt 0:03:34]} axb5 {[%emt 0:00:01]} 23. g3 {[%emt 0:00:21]} (23. Ra1 $16 {And now Ra6 would win.} Ra8 24. Qe2) 23... b4 {[%emt 0:00:24]} (23... Bc5 $11 {remains equal.}) 24. Rfd1 {[%emt 0:02:04]} (24. Ra1 $1 $16 {[%cal Ra1a6] aiming for Ra6.} Ra8 25. b3) 24... Bc5 {[%emt 0:01:03]} 25. Bxc5 {[%emt 0:02:54]} Rxc5 {[%emt 0:00:07]} (25... Nxc5 $14 26. d6 Rfd8) 26. Qe2 $2 {[%emt 0:01:18]} (26. b3 $1 $18 {[%cal Rb3c4]}) 26... Qg5 {[%emt 0:00:05]} (26... b3 $11) 27. Ra1 {[%emt 0:02:02]} (27. Qe3 $1 $14 g6 28. Nd6 (28. Nxh6 Qxe3 29. fxe3 Kg7 $15) 28... Qxe3 29. fxe3) 27... g6 $11 {[%emt 0:01:23]} 28. Ne3 {[%emt 0:02:31]} Nf4 {[%emt 0:00:16]} (28... Qxh5 {simplifies} 29. Qxh5 gxh5 30. Rd2 b3) 29. Qe1 {[%emt 0:01:17] [#]} (29. Qg4 $11 Nxh5 30. Qxg5 hxg5 31. Ra7) 29... c3 $1 $17 {[%emt 0:00:21]} 30. bxc3 {[%emt 0:01:05]} bxc3 {[%emt 0:01:21]} (30... Rxc3 $17 31. Rab1 Rfc8) 31. Rac1 $11 {[%emt 0:00:55]} gxh5 {[%emt 0:00:02]} 32. Nf5 {[%emt 0:01:53]} (32. Rxc3 $2 Rxc3 33. Ng2 Nh3+ 34. Kh2 Qg4 35. Qxc3 Qxd1 $19) (32. Kf1 $11 Rfc8 33. d6 (33. gxf4 exf4 34. Rd3 fxe3 $17)) 32... Qg4 {[%emt 0:00:40]} 33. Qe3 $1 {[%emt 0:01:10]} (33. Rxc3 $2 Rxc3 34. d6 Qf3 $19) 33... Rc4 {[%emt 0:00:40][%cal Oc4e4] White must now prevent ...Rxe4!} 34. Nxh6 {[%emt 0:02:35]} Qg6 {[%emt 0:00:31][%csl LRe4,LRh6][%cal Oc4e4] ...Rxe4! would be deadly. Chess con chili.} (34... Ne2+ 35. Kf1 Qxe4 36. Kxe2 $16 (36. Qxe2 $2 Qh1#)) 35. Nf5 {[%emt 0:00:55]} c2 $2 {[%emt 0:00:40]} (35... h4 $1 $14) 36. Rd2 $18 {[%emt 0:00:31]} Rb8 {[%emt 0:00:26]} 37. Qe1 $2 {[%emt 0:02:25]} (37. Rcxc2 Rb1+ 38. Kh2 Qg4) (37. Rdxc2 $2 Rxc2 38. Rf1 Rbb2 $19) (37. Kh2 $18 Rb1 38. Rdxc2 (38. Rcxc2 Qg4) 38... Rxc1 39. Qxc1 (39. Rxc1 Nxd5 40. Qa3 Rxc1 $16) 39... Rxe4 40. Ne3) 37... Qg4 $36 {[%emt 0:00:22][%mdl 2048] Black has some pressure.} 38. Rdxc2 {[%emt 0:00:49] [#]} (38. Rcxc2 Nh3+ 39. Kh2 Ng5 $19) (38. Ne3 $11 Rxe4 39. d6 (39. Nxg4 Rxe1+ 40. Rxe1 Rb1 $17) (39. Rcxc2 Nh3+ 40. Kg2 Nf4+ 41. Kg1 Qf3 $17) (39. Rdxc2 Qf3 $17)) 38... Rxe4 $1 {[%emt 0:00:39] Black has more active pieces.} 39. Ne3 {[%emt 0:00:49]} (39. Rc8+ $2 Rxc8 40. Rxc8+ (40. Qxe4 $2 Rxc1+) 40... Kh7 $19) 39... Qf3 {[%emt 0:00:39]} 40. Qd1 {[%emt 0:00:35]} (40. gxf4 Rg8+ 41. Kf1 exf4 42. Qc3+ Kh7 43. Re1 fxe3 44. Rxe3 Rxe3 45. Qxe3 Qd1+ 46. Qe1 Qxc2 47. Qe3 Qd1+ 48. Qe1 Rg1+ {[%mdl 64] Deflection} 49. Kxg1 Qxe1+ 50. Kg2 h4 51. Kf3 f5 52. Kg2 Qe4+ 53. Kf1 h3 54. f3 Qc2 55. Ke1 h2 56. f4 h1=Q#) ({Of course not} 40. Rc8+ Kh7 41. gxf4 (41. Rxb8 $2 Rxe3 42. gxf4 Qg4+ 43. Kf1 Rxe1+ 44. Rxe1 h4 $19) 41... exf4 $15) 40... Rxe3 {[%emt 0:00:30][%csl Gf4][%cal Rf3g2,Be4e3,Be3f3,Bf3f4][%mdl 32]} (40... Nh3+ {keeps more tension.} 41. Kh2 Qxd1 42. Nxd1 Ng5) 41. Qxf3 {[%emt 0:00:33]} (41. fxe3 $11 Qxg3+ 42. Kh1 Qxe3 43. Rc3 Qe4+ 44. Qf3 Qxf3+ 45. Rxf3) 41... Rxf3 $15 {[%emt 0:00:10] Black is slightly better.} 42. gxf4 {[%emt 0:00:10]} Rxf4 $11 {[%emt 0:00:44] KRR-KRR} 43. Re1 {[%emt 0:00:37]} f6 {[%emt 0:00:16]} 44. Rc7 {[%emt 0:00:15]} Rg8+ {[%emt 0:00:49]} 45. Kf1 {[%emt 0:00:05]} Rg7 {[%emt 0:00:29]} 46. Rec1 {[%emt 0:01:55] An entertaining game by Tissir.   Weighted Error Value: White=0.36/Black=0.32} 0-1

[Event "3rd Sharjah Challengers 2023"]
[Site "Sharjah"]
[Date "2023.05.24"]
[Round "8.1"]
[White "Fawzy, Adham"]
[Black "Nigmatov, Ortik"]
[Result "1-0"]
[ECO "C78"]
[WhiteElo "2495"]
[BlackElo "2438"]
[Annotator "TA"]
[PlyCount "57"]
[EventDate "2023.05.16"]
[EventType "swiss"]
[EventCountry "UAE"]
[SourceTitle "playchess.com"]
[Source "ChessBase"]
[SourceQuality "1"]
[TimeControl "5400+30"]

{[%evp 12,57,46,33,42,36,30,37,41,-20,-26,-19,48,18,28,27,24,11,47,0,0,0,169,252,236,189,266,272,272,218,218,219,220,168,171,172,163,166,141,175,470,467,1206,1114,3467,2921,2608,2608]} 1. e4 {[%emt 1:31:00]} e5 {[%emt 1:31:00]} 2. Nf3 {[%emt 0:00:30]} Nc6 {[%emt 0:00:30]} 3. Bb5 {[%emt 0:00:30]} a6 {[%emt 0:00:30]} 4. Ba4 {[%emt 0:00:30]} Nf6 {[%emt 0:00:30]} 5. O-O {[%emt 0:00:30]} Bc5 {[%emt 0:00:30]} 6. c3 {[%emt 0:00:30]} b5 {[%emt 0:00:30]} 7. Bc2 {[%emt 0:00:30]} d5 {The main line 7...d5 scores better than 7...d6. C78: Ruy Lopez: Archangelsk and Möller Defences.} 8. a4 {[%emt 0:00:30][%cal Ba2a4,Ba4b5][%mdl 32] exd5 is the strong threat.} dxe4 {[%emt 0:01:00]} (8... Nxe4 9. axb5 Ne7 10. Nxe5 $16) 9. axb5 $1 {[%emt 0:00:30]} Bg4 {[%emt 0:00:30][%mdl 64] [#] Pin. White is slightly better.} 10. d4 $146 {[%emt 0:00:30]} (10. bxc6 $14 exf3 11. gxf3) ({Predecessor:} 10. bxc6 exf3 11. gxf3 Bh3 12. Re1 O-O 13. Ra5 Qd6 14. b4 Bxf2+ 15. Kxf2 e4 16. Kg1 {1-0 Aronian,L (2782)-Le,Q (2709) Aimchess US Rapid Prelim 2021 (1)}) 10... exf3 $11 {[%emt 0:00:30]} 11. dxc5 {[%emt 0:00:30] [#]} Nd4 {[%emt 0:00:30]} 12. cxd4 $14 {[%emt 0:00:30]} fxg2 {[%emt 0:00:30] [#]} 13. dxe5 $1 {[%emt 0:00:30]} gxf1=Q+ {[%emt 0:00:30]} (13... gxf1=R+ 14. Qxf1) 14. Qxf1 {[%emt 0:00:30]} Nd7 {[%emt 0:00:30][%csl LRc5,LRe5] And now ...axb5 would win. Black is weak on the dark squares} 15. Ra4 {[%emt 0:00:30]} (15. Be4 $14 O-O 16. Qg2 (16. Rxa6 Rb8 $17) (16. bxa6 Nxe5 17. Bxa8 Qxa8 $11) 16... Nxe5 17. Bxa8 Qd1+ 18. Qf1 Qxf1+ 19. Kxf1 Rxa8 20. Nc3) 15... Be6 {[%emt 0:00:30]} 16. Qg2 {[%emt 0:00:30] Hoping for Rd4.} Nxe5 $2 {[%emt 0:00:30]} (16... Nxc5 $11 {and Black stays safe.} 17. Qc6+ (17. Qxg7 Nxa4 18. Qxh8+ Kd7 $11) 17... Nd7) 17. Qxg7 $18 {[%emt 0:00:30]} (17. Rxa6 Rxa6 18. bxa6 Bd5 $17) 17... Nf3+ {[%emt 0:00:30]} 18. Kf1 {[%emt 0:00:30]} Ke7 {[%emt 0:00:30] [#]} (18... Nxh2+ $2 19. Kg2 Rf8 20. Be4 $18) (18... Bh3+ $2 19. Ke2 Rf8 20. Bh6 $18) (18... Kd7 $142) 19. Qg3 $1 {[%emt 0:00:30]} (19. bxa6 $2 Rg8 20. Qc3 Rxa6 $19) 19... Qd5 {[%emt 0:00:30] [#] ...Rhg8 would be deadly.} 20. Nc3 $1 {[%emt 0:00:30]} (20. Rxa6 $2 Qc4+ 21. Kg2 Rag8 $19) (20. Qxc7+ Ke8 21. Qc6+ (21. Rxa6 Qc4+ 22. Kg2 Nh4+ 23. Kg1 Rg8+) 21... Qxc6 22. bxc6 Nxh2+ 23. Ke2 Bg4+ 24. Kd2 Nf3+ 25. Kc3 h5 $14) 20... Qh5 {[%emt 0:00:30]} 21. Qxc7+ {[%emt 0:00:30]} (21. Rxa6 $2 Nxh2+ 22. Ke1 Nf3+ 23. Ke2 Ne5+ 24. f3 Rhg8 $19) 21... Kf8 {[%emt 0:00:30]} 22. Qd6+ {[%emt 0:00:30]} (22. bxa6 $2 Nxh2+ 23. Ke1 Nf3+ 24. Ke2 Ne5+ 25. Ke1 Nf3+ 26. Ke2 Ne5+ 27. Ke1 Qh1+ 28. Kd2 Nf3+ 29. Ke2 Qxc1 $19) 22... Kg7 {[%emt 0:00:30]} 23. Qg3+ {[%emt 0:00:30]} (23. bxa6 $2 Nxh2+ 24. Ke1 Nf3+ 25. Ke2 Ne5+ 26. Ke1 Rad8 $19) 23... Kf8 {[%emt 0:00:30] White must now prevent ...Rd8.} 24. Be4 $36 {[%emt 0:00:30][%mdl 2048] White is in control. A strong pair of Bishops.} (24. Rxa6 $2 Bc4+ 25. Kg2 Rxa6 26. bxa6 Rg8 $19) (24. bxa6 $2 Rd8 25. a7 Nxh2+ 26. Ke1 Nf3+ $19) 24... Bh3+ {[%emt 0:00:30]} 25. Ke2 {[%cal Bf1e2,Be2e1,Be1d2][%mdl 32] Some like it hot. White is much more active. The black rooks are badly placed.} Nd4+ {[%emt 0:00:30]} (25... Ne5+ 26. Kd2 Rd8+ 27. Kc2 Rg8) 26. Ke1 {[%emt 0:01:00] White is clearly winning.} Rg8 {[%emt 0:00:30]} (26... Rd8 $142 27. Qg5 (27. bxa6 Nc2+ 28. Bxc2 Rg8 $16) 27... Qxg5 28. Bxg5 axb5 29. Bxd8 bxa4) 27. Qd6+ {[%emt 0:00:30]} Ke8 {[%emt 0:00:30]} 28. Rxd4 {[%emt 0:00:30] White wants to mate with Bc6+.} (28. Bxa8 $2 {loses.} Rg1+ 29. Kd2 Rd1+ {[%mdl 64] Decoy} 30. Nxd1 Qe2+ 31. Kc3 Nxb5+ 32. Kb4 Nxd6 33. Bc6+ Kd8 34. cxd6 Qe5 $19) 28... Rg1+ {[%emt 0:00:30]} 29. Kd2 {[%emt 0:00:30] Beautiful play by Fawzy!   Weighted Error Value: White=0.12 (very precise) /Black=0.45} 1-0